[Event "Live Chess"]
[Site "Chess.com"]
[Date "2024.06.02"]
[Round "-"]
[White "Duke_of_Bebington"]
[Black "Eva3337"]
[Result "1-0"]
[WhiteElo "1655"]
[BlackElo "1173"]
[TimeControl "300"]
[EndTime "3:52:12 PDT"]
[Termination "Duke_of_Bebington won on time"]

1. e4 {[%clk 0:04:58]} 1... Nc6 {[%clk 0:04:57.8]} 2. d4 {[%clk 0:04:55.3]} 2...
d5 {[%clk 0:04:53.9]} 3. exd5 {[%clk 0:04:46]} 3... Qxd5 {[%clk 0:04:52.4]} 4.
Nf3 {[%clk 0:04:45.3]} 4... e5 {[%clk 0:04:47.9]} 5. dxe5 {[%clk 0:04:31.8]}
5... Qxd1+ {[%clk 0:04:41.5]} 6. Kxd1 {[%clk 0:04:31.7]} 6... Bg4 {[%clk
0:04:34.8]} 7. Bf4 {[%clk 0:04:27.9]} 7... Bxf3+ {[%clk 0:04:30.7]} 8. gxf3
{[%clk 0:04:26.5]} 8... O-O-O+ {[%clk 0:04:25.9]} 9. Kc1 {[%clk 0:04:18.7]} 9...
Nge7 {[%clk 0:04:24.5]} 10. Nc3 {[%clk 0:04:13.1]} 10... Ng6 {[%clk 0:04:22.8]}
11. Bh3+ {[%clk 0:04:08.4]} 11... Kb8 {[%clk 0:04:20.6]} 12. Bg5 {[%clk
0:04:00.8]} 12... Re8 {[%clk 0:04:04.2]} 13. f4 {[%clk 0:03:59.2]} 13... Be7
{[%clk 0:04:01.9]} 14. Bxe7 {[%clk 0:03:54.6]} 14... Rxe7 {[%clk 0:03:57.1]} 15.
Rd1 {[%clk 0:03:36.7]} 15... Nxf4 {[%clk 0:03:53.2]} 16. Bf1 {[%clk 0:03:20.9]}
16... Rxe5 {[%clk 0:03:48]} 17. b3 {[%clk 0:03:14.2]} 17... Rhe8 {[%clk
0:03:44.4]} 18. Kb2 {[%clk 0:03:11.8]} 18... a6 {[%clk 0:03:21]} 19. Rd2 {[%clk
0:02:55.6]} 19... Rd8 {[%clk 0:03:07.5]} 20. Rxd8+ {[%clk 0:02:51.3]} 20... Nxd8
{[%clk 0:03:06]} 21. Rd1 {[%clk 0:02:50.5]} 21... Kc8 {[%clk 0:03:01.2]} 22. Bc4
{[%clk 0:02:34.5]} 22... f6 {[%clk 0:02:54.6]} 23. Nd5 {[%clk 0:02:26]} 23...
Nxd5 {[%clk 0:02:41.4]} 24. Bxd5 {[%clk 0:02:24.2]} 24... c6 {[%clk 0:02:34.8]}
25. Bf3 {[%clk 0:02:16.9]} 25... Kc7 {[%clk 0:02:26.1]} 26. Bg4 {[%clk
0:02:01.8]} 26... f5 {[%clk 0:02:17.7]} 27. Bh3 {[%clk 0:01:59.4]} 27... g5
{[%clk 0:02:09.8]} 28. f4 {[%clk 0:01:53.4]} 28... Re3 {[%clk 0:02:03.1]} 29.
Bxf5 {[%clk 0:01:47]} 29... gxf4 {[%clk 0:02:01.5]} 30. Rd7+ {[%clk 0:01:40]}
30... Kb6 {[%clk 0:01:32.5]} 31. Rxd8 {[%clk 0:01:39.2]} 31... f3 {[%clk
0:01:23.8]} 32. Rd3 {[%clk 0:01:35.9]} 32... Rxd3 {[%clk 0:01:16.2]} 33. Bxd3
{[%clk 0:01:35.8]} 33... Kc5 {[%clk 0:01:11.7]} 34. Kc1 {[%clk 0:01:32.8]} 34...
Kd4 {[%clk 0:01:10.4]} 35. Kd2 {[%clk 0:01:32.4]} 35... h5 {[%clk 0:00:33.8]}
36. a4 {[%clk 0:01:29.2]} 36... b5 {[%clk 0:00:30.4]} 37. axb5 {[%clk
0:01:27.7]} 37... axb5 {[%clk 0:00:29.4]} 38. Ke1 {[%clk 0:01:25.6]} 38... b4
{[%clk 0:00:28.2]} 39. Kf2 {[%clk 0:01:24.4]} 39... Ke5 {[%clk 0:00:17.3]} 40.
Kxf3 {[%clk 0:01:23.3]} 40... Kf6 {[%clk 0:00:15.9]} 41. Kg3 {[%clk 0:01:22.5]}
41... Kg5 {[%clk 0:00:15.2]} 42. h4+ {[%clk 0:01:20.9]} 42... Kh6 {[%clk
0:00:12.4]} 43. Be2 {[%clk 0:01:17.2]} 43... c5 {[%clk 0:00:11.7]} 44. Kf4
{[%clk 0:01:14.4]} 44... Kg7 {[%clk 0:00:10.5]} 45. Kg5 {[%clk 0:01:12.9]} 45...
Kh7 {[%clk 0:00:08.7]} 46. Kxh5 {[%clk 0:01:12.2]} 46... Kg7 {[%clk 0:00:06.8]}
47. Kg5 {[%clk 0:01:11.6]} 47... c4 {[%clk 0:00:06.1]} 48. Bxc4 {[%clk
0:01:09.9]} 48... Kh7 {[%clk 0:00:04.1]} 49. h5 {[%clk 0:01:09.1]} 49... Kg7
{[%clk 0:00:02.9]} 50. Kf5 {[%clk 0:01:06]} 50... Kh8 {[%clk 0:00:02.2]} 51. Ke5
{[%clk 0:01:03.6]} 51... Kg7 {[%clk 0:00:01]} 52. Kd5 {[%clk 0:01:03.1]} 1-0

[Event "Live Chess"]
[Site "Chess.com"]
[Date "2024.06.02"]
[Round "-"]
[White "juniortay"]
[Black "AlexanderMatlak"]
[Result "0-1"]
[WhiteElo "2367"]
[BlackElo "2404"]
[TimeControl "300"]
[EndTime "3:52:34 PDT"]
[Termination "AlexanderMatlak won by resignation"]

1. e4 {[%clk 0:04:57.7]} 1... c5 {[%clk 0:04:58.9]} 2. Nf3 {[%clk 0:04:56.7]}
2... d6 {[%clk 0:04:55.6]} 3. d4 {[%clk 0:04:55.8]} 3... cxd4 {[%clk 0:04:55.5]}
4. Qxd4 {[%clk 0:04:55.7]} 4... a6 {[%clk 0:04:53.4]} 5. Be3 {[%clk 0:04:54]}
5... Nf6 {[%clk 0:04:51.3]} 6. Nc3 {[%clk 0:04:52.9]} 6... Nc6 {[%clk
0:04:50.5]} 7. Qb6 {[%clk 0:04:51.9]} 7... Qxb6 {[%clk 0:04:41]} 8. Bxb6 {[%clk
0:04:50.6]} 8... g6 {[%clk 0:04:39.7]} 9. O-O-O {[%clk 0:04:49.3]} 9... Bg7
{[%clk 0:04:39.1]} 10. e5 {[%clk 0:04:47.2]} 10... dxe5 {[%clk 0:04:33.8]} 11.
Nxe5 {[%clk 0:04:46.1]} 11... O-O {[%clk 0:04:33.1]} 12. Nxc6 {[%clk 0:04:43]}
12... bxc6 {[%clk 0:04:33]} 13. Bc4 {[%clk 0:04:41.3]} 13... a5 {[%clk
0:04:23.3]} 14. Rhe1 {[%clk 0:04:38.4]} 14... e6 {[%clk 0:04:21.2]} 15. Rd6
{[%clk 0:04:24.4]} 15... Nd5 {[%clk 0:04:18]} 16. Bxd5 {[%clk 0:03:53.2]} 16...
cxd5 {[%clk 0:04:17.9]} 17. Nb5 {[%clk 0:03:40.8]} 17... Rb8 {[%clk 0:04:06]}
18. a4 {[%clk 0:03:37]} 18... Bb7 {[%clk 0:03:52.4]} 19. Bd4 {[%clk 0:03:35]}
19... Rfd8 {[%clk 0:03:39.5]} 20. Rxd8+ {[%clk 0:03:17.4]} 20... Rxd8 {[%clk
0:03:39.4]} 21. Bxg7 {[%clk 0:03:10.8]} 21... Kxg7 {[%clk 0:03:39.3]} 22. Nd4
{[%clk 0:03:09]} 22... Kf6 {[%clk 0:03:30.1]} 23. f4 {[%clk 0:03:07.4]} 23...
Rc8 {[%clk 0:03:26.9]} 24. b3 {[%clk 0:03:01.1]} 24... Ba6 {[%clk 0:03:26.1]}
25. Kd2 {[%clk 0:02:59.7]} 25... h6 {[%clk 0:03:24.8]} 26. h4 {[%clk 0:02:52.9]}
26... g5 {[%clk 0:03:21.3]} 27. fxg5+ {[%clk 0:02:51]} 27... hxg5 {[%clk
0:03:20.7]} 28. h5 {[%clk 0:02:29.5]} 28... g4 {[%clk 0:03:19.4]} 29. Re3 {[%clk
0:02:17.3]} 29... Rh8 {[%clk 0:03:01]} 30. Nc6 {[%clk 0:02:08.9]} 30... Rxh5
{[%clk 0:02:49.8]} 31. Nxa5 {[%clk 0:02:07.6]} 31... Rh2 {[%clk 0:02:38.4]} 32.
Rg3 {[%clk 0:01:52.2]} 32... Kg5 {[%clk 0:02:36.8]} 33. Nc6 {[%clk 0:01:50.8]}
33... Kf4 {[%clk 0:02:27.3]} 34. Rc3 {[%clk 0:01:42.7]} 34... Rxg2+ {[%clk
0:02:26.2]} 35. Kc1 {[%clk 0:01:41.1]} 35... g3 {[%clk 0:02:14.2]} 36. Nd4
{[%clk 0:01:26.7]} 36... Rf2 {[%clk 0:02:05]} 0-1

[Event "Live Chess"]
[Site "Chess.com"]
[Date "2024.06.02"]
[Round "-"]
[White "LL220284LL"]
[Black "RockTroll"]
[Result "1-0"]
[WhiteElo "2510"]
[BlackElo "2166"]
[TimeControl "300"]
[EndTime "3:52:35 PDT"]
[Termination "LL220284LL won by resignation"]

1. Nf3 {[%clk 0:04:57.4]} 1... Nf6 {[%clk 0:04:59.3]} 2. g3 {[%clk 0:04:55.4]}
2... g6 {[%clk 0:04:58.8]} 3. Bg2 {[%clk 0:04:54.1]} 3... Bg7 {[%clk 0:04:58.5]}
4. d3 {[%clk 0:04:53.8]} 4... d5 {[%clk 0:04:55.9]} 5. Nbd2 {[%clk 0:04:51.8]}
5... O-O {[%clk 0:04:54]} 6. O-O {[%clk 0:04:50.8]} 6... c5 {[%clk 0:04:53.6]}
7. Qe1 {[%clk 0:04:49.3]} 7... Nc6 {[%clk 0:04:52.6]} 8. e4 {[%clk 0:04:43.7]}
8... e5 {[%clk 0:04:51]} 9. exd5 {[%clk 0:04:39.7]} 9... Nxd5 {[%clk 0:04:50.2]}
10. a3 {[%clk 0:04:37.8]} 10... h6 {[%clk 0:04:48.3]} 11. Nc4 {[%clk 0:04:29.9]}
11... Re8 {[%clk 0:04:46.8]} 12. Ne3 {[%clk 0:04:27.4]} 12... Nc7 {[%clk
0:04:43.1]} 13. Rb1 {[%clk 0:04:19.8]} 13... Nd4 {[%clk 0:04:37.7]} 14. Nc4
{[%clk 0:03:49.4]} 14... Nxc2 {[%clk 0:04:32.6]} 15. Qd1 {[%clk 0:03:39.6]}
15... Nd4 {[%clk 0:04:31.2]} 16. Nxd4 {[%clk 0:03:38.9]} 16... exd4 {[%clk
0:04:27.2]} 17. Qf3 {[%clk 0:03:30.9]} 17... Rb8 {[%clk 0:04:25.3]} 18. b4
{[%clk 0:03:28.6]} 18... cxb4 {[%clk 0:04:20.7]} 19. axb4 {[%clk 0:03:25.9]}
19... Be6 {[%clk 0:04:18.8]} 20. Bf4 {[%clk 0:03:19.1]} 20... Bd5 {[%clk
0:04:11.6]} 21. Bxc7 {[%clk 0:03:14.9]} 21... Bxf3 {[%clk 0:04:10.9]} 22. Bxd8
{[%clk 0:03:13.2]} 22... Bxg2 {[%clk 0:04:10.5]} 23. Kxg2 {[%clk 0:03:10.3]}
23... Rbxd8 {[%clk 0:04:08]} 24. b5 {[%clk 0:03:07.5]} 24... Re2 {[%clk
0:03:59.7]} 25. Ra1 {[%clk 0:03:05.7]} 25... Rd5 {[%clk 0:03:58.9]} 26. Kf3
{[%clk 0:02:28.6]} 26... Rc2 {[%clk 0:03:53.8]} 27. Rxa7 {[%clk 0:02:26.3]}
27... Rxb5 {[%clk 0:03:47.8]} 28. Nd6 {[%clk 0:02:12.3]} 28... Rb6 {[%clk
0:03:41.9]} 29. Ra8+ {[%clk 0:02:05.6]} 29... Kh7 {[%clk 0:03:40]} 30. Nc4
{[%clk 0:02:01]} 30... Rf6+ {[%clk 0:03:38.3]} 31. Kg2 {[%clk 0:01:59]} 31... b5
{[%clk 0:03:33.6]} 32. Ne5 {[%clk 0:01:48.7]} 32... b4 {[%clk 0:03:28.4]} 33.
Rb8 {[%clk 0:01:45.1]} 33... Rf5 {[%clk 0:02:50.2]} 34. Nc4 {[%clk 0:01:42.5]}
34... Rc3 {[%clk 0:02:43.4]} 35. Rxb4 {[%clk 0:01:40.3]} 35... Rxd3 {[%clk
0:02:41.9]} 36. Nd6 {[%clk 0:01:38.9]} 36... Rf6 {[%clk 0:02:38.4]} 37. Ne4
{[%clk 0:01:37.6]} 37... Re6 {[%clk 0:02:35.1]} 38. Nc5 {[%clk 0:01:36.6]} 38...
Rd2 {[%clk 0:02:11.1]} 39. Nxe6 {[%clk 0:01:34]} 39... fxe6 {[%clk 0:02:11]} 40.
Re1 {[%clk 0:01:31]} 40... e5 {[%clk 0:02:09.5]} 41. Kf3 {[%clk 0:01:28.7]}
41... g5 {[%clk 0:02:01.8]} 42. h3 {[%clk 0:01:24.1]} 42... Kg6 {[%clk
0:02:00.7]} 43. Re2 {[%clk 0:01:18.1]} 43... Rd3+ {[%clk 0:01:59]} 44. Ke4
{[%clk 0:01:16.5]} 44... Rd1 {[%clk 0:01:57.5]} 45. Rb6+ {[%clk 0:01:14.1]}
45... Bf6 {[%clk 0:01:56.7]} 46. Rd6 {[%clk 0:01:11.2]} 46... h5 {[%clk
0:01:54.6]} 47. Ra2 {[%clk 0:00:58.5]} 47... Re1+ {[%clk 0:01:52.3]} 48. Kf3
{[%clk 0:00:56.4]} 48... Kf5 {[%clk 0:01:51.1]} 49. g4+ {[%clk 0:00:54.9]} 49...
hxg4+ {[%clk 0:01:47.2]} 50. hxg4+ {[%clk 0:00:54.8]} 50... Kg6 {[%clk
0:01:46.5]} 51. Raa6 {[%clk 0:00:54.4]} 51... e4+ {[%clk 0:01:45.9]} 52. Kg2
{[%clk 0:00:53.8]} 1-0

[Event "Live Chess"]
[Site "Chess.com"]
[Date "2024.06.02"]
[Round "-"]
[White "Ksenia_2013"]
[Black "Silverback7829"]
[Result "1-0"]
[WhiteElo "985"]
[BlackElo "880"]
[TimeControl "300"]
[EndTime "3:52:38 PDT"]
[Termination "Ksenia_2013 won by checkmate"]

1. e4 {[%clk 0:04:57.5]} 1... e5 {[%clk 0:04:58.2]} 2. Nf3 {[%clk 0:04:56.3]}
2... Nc6 {[%clk 0:04:56.2]} 3. Bc4 {[%clk 0:04:55]} 3... d6 {[%clk 0:04:53.5]}
4. Ng5 {[%clk 0:04:53.4]} 4... Qxg5 {[%clk 0:04:35.1]} 5. d4 {[%clk 0:04:47]}
5... Qxg2 {[%clk 0:04:31.5]} 6. Rg1 {[%clk 0:04:37.8]} 6... Qxh2 {[%clk
0:04:26.7]} 7. Rf1 {[%clk 0:04:29.7]} 7... Qh3 {[%clk 0:04:16.7]} 8. dxe5 {[%clk
0:04:26.3]} 8... dxe5 {[%clk 0:04:14]} 9. Qd5 {[%clk 0:04:14]} 9... Nf6 {[%clk
0:04:07.3]} 10. Qxf7+ {[%clk 0:04:11.2]} 10... Kd8 {[%clk 0:03:56.9]} 11. Ke2
{[%clk 0:04:01.9]} 11... Qg4+ {[%clk 0:03:47.9]} 12. Ke3 {[%clk 0:03:59.4]}
12... Qg2 {[%clk 0:03:42.1]} 13. Rd1+ {[%clk 0:03:57]} 13... Bd7 {[%clk
0:03:28.3]} 14. Rxd7+ {[%clk 0:03:49.1]} 14... Kc8 {[%clk 0:03:03.3]} 15. Rxc7+
{[%clk 0:03:47]} 15... Kb8 {[%clk 0:02:56.8]} 16. Rxb7+ {[%clk 0:03:43.5]} 16...
Kc8 {[%clk 0:02:51.1]} 17. Qc7# {[%clk 0:03:41.2]} 1-0

[Event "Live Chess"]
[Site "Chess.com"]
[Date "2024.06.02"]
[Round "-"]
[White "halfberg"]
[Black "asingardenof"]
[Result "1-0"]
[WhiteElo "1907"]
[BlackElo "621"]
[TimeControl "300"]
[EndTime "3:52:38 PDT"]
[Termination "halfberg won by checkmate"]

1. e4 {[%clk 0:04:56.9]} 1... c6 {[%clk 0:04:59.1]} 2. d4 {[%clk 0:04:51]} 2...
d5 {[%clk 0:04:58.2]} 3. Nc3 {[%clk 0:04:49.3]} 3... Nf6 {[%clk 0:04:56.5]} 4.
e5 {[%clk 0:04:47.2]} 4... Ne4 {[%clk 0:04:51.4]} 5. Nxe4 {[%clk 0:04:35.9]}
5... dxe4 {[%clk 0:04:48.1]} 6. Bc4 {[%clk 0:04:27.2]} 6... Bf5 {[%clk
0:04:45.3]} 7. Ne2 {[%clk 0:04:24.9]} 7... e6 {[%clk 0:04:40.9]} 8. O-O {[%clk
0:04:23.2]} 8... Be7 {[%clk 0:04:37.1]} 9. Ng3 {[%clk 0:04:19.8]} 9... Bg6
{[%clk 0:04:32.6]} 10. Re1 {[%clk 0:04:16.2]} 10... Bb4 {[%clk 0:04:26.8]} 11.
c3 {[%clk 0:04:13.9]} 11... Ba5 {[%clk 0:04:25.7]} 12. Nxe4 {[%clk 0:04:08.9]}
12... f5 {[%clk 0:04:18.4]} 13. Bg5 {[%clk 0:03:44.9]} 13... Qc7 {[%clk
0:04:11.3]} 14. Nd6+ {[%clk 0:03:42.9]} 14... Kd7 {[%clk 0:04:05.3]} 15. Qb3
{[%clk 0:03:36]} 15... Re8 {[%clk 0:03:56.4]} 16. Nxe8 {[%clk 0:03:33.5]} 16...
Kxe8 {[%clk 0:03:54.2]} 17. Bxe6 {[%clk 0:03:32.4]} 17... Nd7 {[%clk 0:03:40]}
18. Bxd7+ {[%clk 0:03:27]} 18... Qxd7 {[%clk 0:03:39.9]} 19. Qg8# {[%clk
0:03:20.8]} 1-0

[Event "Live Chess"]
[Site "Chess.com"]
[Date "2024.06.02"]
[Round "-"]
[White "Ferrarifan27"]
[Black "KeithArkell"]
[Result "0-1"]
[WhiteElo "2148"]
[BlackElo "2414"]
[TimeControl "300"]
[EndTime "3:53:16 PDT"]
[Termination "KeithArkell won by resignation"]

1. e4 {[%clk 0:04:57.1]} 1... c6 {[%clk 0:04:59.1]} 2. d4 {[%clk 0:04:55.6]}
2... d5 {[%clk 0:04:58.5]} 3. e5 {[%clk 0:04:54.9]} 3... c5 {[%clk 0:04:57.9]}
4. dxc5 {[%clk 0:04:53.3]} 4... Nc6 {[%clk 0:04:57.4]} 5. a3 {[%clk 0:04:52]}
5... Nxe5 {[%clk 0:04:53.7]} 6. b4 {[%clk 0:04:50]} 6... a5 {[%clk 0:04:46.8]}
7. Bb2 {[%clk 0:04:47.2]} 7... Nd7 {[%clk 0:04:37.5]} 8. Qxd5 {[%clk 0:04:41.3]}
8... axb4 {[%clk 0:04:36]} 9. axb4 {[%clk 0:04:39.6]} 9... Rxa1 {[%clk 0:04:35]}
10. Bxa1 {[%clk 0:04:38.6]} 10... Ngf6 {[%clk 0:04:34.2]} 11. Qd1 {[%clk
0:04:35.4]} 11... e6 {[%clk 0:04:31.3]} 12. Nd2 {[%clk 0:04:29.1]} 12... Qc7
{[%clk 0:04:29.8]} 13. Ngf3 {[%clk 0:04:26.6]} 13... b6 {[%clk 0:04:28.9]} 14.
cxb6 {[%clk 0:04:24.7]} 14... Nxb6 {[%clk 0:04:26.1]} 15. c3 {[%clk 0:04:22.4]}
15... Be7 {[%clk 0:04:21.9]} 16. Bb5+ {[%clk 0:04:21]} 16... Bd7 {[%clk
0:04:20.8]} 17. Bxd7+ {[%clk 0:04:18.8]} 17... Nbxd7 {[%clk 0:04:17.4]} 18. O-O
{[%clk 0:04:18.3]} 18... O-O {[%clk 0:04:16.6]} 19. Qb3 {[%clk 0:04:14.5]} 19...
Nd5 {[%clk 0:04:12.2]} 20. Rb1 {[%clk 0:03:55.8]} 20... Rc8 {[%clk 0:04:09.1]}
21. c4 {[%clk 0:03:53.1]} 21... Nxb4 {[%clk 0:04:07.7]} 22. Qc3 {[%clk
0:03:51.8]} 22... f6 {[%clk 0:04:01.8]} 23. Rxb4 {[%clk 0:03:50.3]} 23... Bxb4
{[%clk 0:03:59.9]} 24. Qxb4 {[%clk 0:03:50.2]} 24... Nc5 {[%clk 0:03:56.5]} 25.
Bd4 {[%clk 0:03:31.8]} 25... Nd3 {[%clk 0:03:51]} 26. Qb3 {[%clk 0:03:22.8]}
26... Nf4 {[%clk 0:03:49]} 27. Be3 {[%clk 0:03:09.9]} 27... e5 {[%clk
0:03:37.3]} 28. g3 {[%clk 0:03:05.8]} 28... Ne6 {[%clk 0:03:35.3]} 29. c5 {[%clk
0:03:02.4]} 29... Qf7 {[%clk 0:03:34.4]} 30. Ne4 {[%clk 0:02:59.1]} 30... Ra8
{[%clk 0:03:20.2]} 31. Nd6 {[%clk 0:02:54.4]} 31... Ra1+ {[%clk 0:03:17.3]} 32.
Kg2 {[%clk 0:02:52.7]} 32... Nf4+ {[%clk 0:03:16.6]} 33. gxf4 {[%clk 0:02:46.5]}
33... Qxb3 {[%clk 0:03:15.4]} 34. fxe5 {[%clk 0:02:44.8]} 34... Qd5 {[%clk
0:03:12.1]} 35. exf6 {[%clk 0:02:38.8]} 35... gxf6 {[%clk 0:03:11.2]} 36. Kg3
{[%clk 0:02:25.8]} 36... Ra7 {[%clk 0:03:09.1]} 37. h4 {[%clk 0:02:05.8]} 37...
Rg7+ {[%clk 0:03:07.1]} 38. Kh2 {[%clk 0:02:04.9]} 38... Qxf3 {[%clk 0:03:05.5]}
0-1

[Event "Live Chess"]
[Site "Chess.com"]
[Date "2024.06.02"]
[Round "-"]
[White "Victor_Bondar"]
[Black "Brooms1989"]
[Result "0-1"]
[WhiteElo "1460"]
[BlackElo "1251"]
[TimeControl "300"]
[EndTime "3:53:19 PDT"]
[Termination "Brooms1989 won on time"]

1. e4 {[%clk 0:04:55.2]} 1... e5 {[%clk 0:04:59.4]} 2. Nf3 {[%clk 0:04:53.2]}
2... Nc6 {[%clk 0:04:56.8]} 3. d4 {[%clk 0:04:51.9]} 3... exd4 {[%clk
0:04:55.7]} 4. Nxd4 {[%clk 0:04:50.9]} 4... Nf6 {[%clk 0:04:54.1]} 5. Nxc6
{[%clk 0:04:46.7]} 5... bxc6 {[%clk 0:04:54]} 6. Bd3 {[%clk 0:04:45.5]} 6... Bc5
{[%clk 0:04:50.5]} 7. Bg5 {[%clk 0:04:41.3]} 7... h6 {[%clk 0:04:48.7]} 8. Bh4
{[%clk 0:04:39.6]} 8... Be7 {[%clk 0:04:45]} 9. Nc3 {[%clk 0:04:32.8]} 9... O-O
{[%clk 0:04:43.6]} 10. O-O {[%clk 0:04:24]} 10... d6 {[%clk 0:04:28.5]} 11. h3
{[%clk 0:04:20.8]} 11... Bd7 {[%clk 0:04:23.7]} 12. f4 {[%clk 0:03:59.7]} 12...
Nh7 {[%clk 0:04:16.4]} 13. Bxe7 {[%clk 0:03:57.1]} 13... Qxe7 {[%clk 0:04:16.3]}
14. Qf3 {[%clk 0:03:46.7]} 14... Rab8 {[%clk 0:04:05.6]} 15. b3 {[%clk 0:03:45]}
15... Rfe8 {[%clk 0:04:04.4]} 16. Rae1 {[%clk 0:03:39.9]} 16... a6 {[%clk
0:03:43.9]} 17. e5 {[%clk 0:03:24.1]} 17... d5 {[%clk 0:03:37.9]} 18. Kh1 {[%clk
0:03:10.4]} 18... Qc5 {[%clk 0:03:28.5]} 19. a4 {[%clk 0:03:00.6]} 19... Nf8
{[%clk 0:02:57.5]} 20. Bxa6 {[%clk 0:02:54.2]} 20... Qa5 {[%clk 0:02:49.9]} 21.
Bd3 {[%clk 0:02:44.6]} 21... Ng6 {[%clk 0:02:37.7]} 22. Bxg6 {[%clk 0:02:34.7]}
22... fxg6 {[%clk 0:02:35.1]} 23. Ne2 {[%clk 0:02:19.6]} 23... Rf8 {[%clk
0:02:22.5]} 24. Nd4 {[%clk 0:02:07.8]} 24... Rbe8 {[%clk 0:02:00.6]} 25. Qd3
{[%clk 0:02:04.8]} 25... Kh7 {[%clk 0:01:55.5]} 26. h4 {[%clk 0:01:30.5]} 26...
Rxf4 {[%clk 0:01:36.8]} 27. g3 {[%clk 0:00:41.1]} 27... Rxf1+ {[%clk 0:01:11.4]}
28. Rxf1 {[%clk 0:00:38.6]} 28... Qb4 {[%clk 0:00:59.9]} 29. e6 {[%clk
0:00:20.9]} 29... Rxe6 {[%clk 0:00:38.4]} 30. Nxe6 {[%clk 0:00:18.9]} 30... Bxe6
{[%clk 0:00:38.3]} 31. Kg2 {[%clk 0:00:12]} 31... Bf5 {[%clk 0:00:35]} 32. Qe2
{[%clk 0:00:07.7]} 32... Qc5 {[%clk 0:00:29.9]} 0-1

[Event "Live Chess"]
[Site "Chess.com"]
[Date "2024.06.02"]
[Round "-"]
[White "MaksymYurii"]
[Black "RichardABates"]
[Result "0-1"]
[WhiteElo "1000"]
[BlackElo "2335"]
[TimeControl "300"]
[EndTime "3:53:39 PDT"]
[Termination "RichardABates won by checkmate"]

1. e4 {[%clk 0:04:56.7]} 1... c5 {[%clk 0:04:58.6]} 2. Nf3 {[%clk 0:04:55.8]}
2... d6 {[%clk 0:04:57]} 3. Bc4 {[%clk 0:04:55]} 3... e6 {[%clk 0:04:55.4]} 4.
Bb5+ {[%clk 0:04:53]} 4... Bd7 {[%clk 0:04:52.6]} 5. Be2 {[%clk 0:04:50.9]} 5...
Nc6 {[%clk 0:04:50.8]} 6. O-O {[%clk 0:04:49.7]} 6... Nf6 {[%clk 0:04:49.5]} 7.
Nc3 {[%clk 0:04:47.9]} 7... Be7 {[%clk 0:04:48]} 8. d3 {[%clk 0:04:47.2]} 8...
O-O {[%clk 0:04:46.7]} 9. Nh4 {[%clk 0:04:42.1]} 9... d5 {[%clk 0:04:28.3]} 10.
exd5 {[%clk 0:04:39.9]} 10... exd5 {[%clk 0:04:26.6]} 11. Nf3 {[%clk 0:04:38.1]}
11... d4 {[%clk 0:04:23.9]} 12. Ne4 {[%clk 0:04:35]} 12... Nxe4 {[%clk
0:04:21.8]} 13. dxe4 {[%clk 0:04:34.9]} 13... Be6 {[%clk 0:04:19.1]} 14. c3
{[%clk 0:04:31.8]} 14... dxc3 {[%clk 0:04:05.5]} 15. Qxd8 {[%clk 0:04:26.4]}
15... Raxd8 {[%clk 0:04:03.3]} 16. bxc3 {[%clk 0:04:25.7]} 16... Bf6 {[%clk
0:04:01.5]} 17. e5 {[%clk 0:04:23.2]} 17... Nxe5 {[%clk 0:03:59.8]} 18. Nxe5
{[%clk 0:04:21.2]} 18... Bxe5 {[%clk 0:03:58.9]} 19. Be3 {[%clk 0:04:20]} 19...
Bxc3 {[%clk 0:03:55.3]} 20. Bxc5 {[%clk 0:04:18.1]} 20... Bxa1 {[%clk
0:03:52.7]} 21. Bxf8 {[%clk 0:04:16.5]} 21... Kxf8 {[%clk 0:03:51.5]} 22. Rxa1
{[%clk 0:04:14.2]} 22... Rd2 {[%clk 0:03:50]} 23. Bf1 {[%clk 0:04:04.7]} 23...
Rxa2 {[%clk 0:03:48.4]} 24. Rd1 {[%clk 0:03:49.1]} 24... Ke7 {[%clk 0:03:46.3]}
25. h3 {[%clk 0:03:40.6]} 25... a5 {[%clk 0:03:44.8]} 26. g4 {[%clk 0:03:39.7]}
26... a4 {[%clk 0:03:42.9]} 27. Rd4 {[%clk 0:03:37.7]} 27... Bb3 {[%clk
0:03:33.6]} 28. Rb4 {[%clk 0:03:35.6]} 28... Bd5 {[%clk 0:03:27.5]} 29. Bg2
{[%clk 0:03:24.3]} 29... Bc6 {[%clk 0:03:19]} 30. Rc4 {[%clk 0:03:08.7]} 30...
Kd6 {[%clk 0:03:14]} 31. Rd4+ {[%clk 0:03:05.3]} 31... Kc5 {[%clk 0:03:11.7]}
32. Rf4 {[%clk 0:03:02.3]} 32... f6 {[%clk 0:03:09]} 33. g5 {[%clk 0:03:00.4]}
33... fxg5 {[%clk 0:03:06.1]} 34. Rf7 {[%clk 0:02:58.2]} 34... Bxg2 {[%clk
0:03:01.1]} 35. Kxg2 {[%clk 0:02:56.6]} 35... Rb2 {[%clk 0:02:59.9]} 36. Rxg7
{[%clk 0:02:55.6]} 36... h6 {[%clk 0:02:57.5]} 37. Re7 {[%clk 0:02:47.7]} 37...
a3 {[%clk 0:02:56]} 38. Re1 {[%clk 0:02:46.4]} 38... a2 {[%clk 0:02:54.9]} 39.
Ra1 {[%clk 0:02:45.4]} 39... b5 {[%clk 0:02:52.1]} 40. Kf3 {[%clk 0:02:44.4]}
40... b4 {[%clk 0:02:50.9]} 41. Ke3 {[%clk 0:02:43.9]} 41... b3 {[%clk
0:02:50.1]} 42. Kd3 {[%clk 0:02:43.4]} 42... Rb1 {[%clk 0:02:49.2]} 43. Kc3
{[%clk 0:02:36.4]} 43... Rxa1 {[%clk 0:02:47.3]} 44. Kxb3 {[%clk 0:02:35.7]}
44... Rf1 {[%clk 0:02:46]} 45. Kxa2 {[%clk 0:02:34.8]} 45... Kb4 {[%clk
0:02:44.6]} 46. Kb2 {[%clk 0:02:34.1]} 46... Rxf2+ {[%clk 0:02:43.3]} 47. Kc1
{[%clk 0:02:32.8]} 47... h5 {[%clk 0:02:40.5]} 48. Kd1 {[%clk 0:02:32.1]} 48...
g4 {[%clk 0:02:39.5]} 49. Ke1 {[%clk 0:02:31.6]} 49... g3 {[%clk 0:02:37.7]} 50.
Kd1 {[%clk 0:02:28.9]} 50... Kc3 {[%clk 0:02:36.2]} 51. Ke1 {[%clk 0:02:28]}
51... Kd3 {[%clk 0:02:34.1]} 52. Kd1 {[%clk 0:02:26.2]} 52... Rf1# {[%clk
0:02:33.2]} 0-1